bitfinex/quotes_SOLUSD_20241022
["timestamp","ask_amount","ask_price","bid_price","bid_amount"]
[1729607090950,5.9735,167.41,167.34,23.776884]
[1729607091154,13.96027559,167.42,167.36,23.776884]
[1729607092166,5.9715,167.47,167.38,23.776884]
[1729607092960,14.9243,167.52,167.38,23.776884]
[1729607093164,14.9244,167.51,167.38,23.776884]
[1729607093463,5.9712,167.47,167.39,20.0]
[1729607094269,5.9701,167.5,167.39,20.0]
[1729607094569,5.9706,167.49,167.4,23.776884]
[1729607094971,5.9706,167.49,167.36,70.0]
[1729607094972,5.9701,167.5,167.42,23.776884]
[1729607095355,5.9717,167.46,167.37,23.776884]
[1729607095569,5.9717,167.46,167.36,70.0]
[1729607095570,5.9717,167.46,167.39,23.776884]
[1729607095762,5.9724,167.44,167.39,23.776884]
[1729607095961,5.9721,167.45,167.39,23.776884]
[1729607096158,14.9253,167.5,167.39,23.776884]
[1729607096972,25.9708,167.49,167.39,23.776884]
[1729607097155,20.0,167.49,167.39,23.776884]
[1729607097468,20.0,167.49,167.4,20.0]
[1729607097672,5.9708,167.48,167.4,20.0]
[1729607097868,5.9712,167.47,167.39,23.776884]
[1729607098371,21.489,167.53,167.39,23.776884]
[1729607098372,5.9716,167.46,167.39,23.776884]
[1729607099168,5.9726,167.44,167.36,20.0]
[1729607099377,5.9726,167.44,167.37,23.776884]
[1729607099564,14.9253,167.5,167.37,23.776884]
[1729607099764,23.776884,167.51,167.37,23.776884]
[1729607099966,20.0,167.46,167.37,23.776884]
[1729607100272,5.9719,167.46,167.38,20.0]
[1729607100477,0.1,167.46,167.3,6.2664]
[1729607100649,5.9748,167.37,167.3,6.2664]
[1729607101059,5.9744,167.38,167.3,6.2664]
[1729607101284,5.9755,167.35,167.3,6.2664]
[1729607101573,5.9758,167.35,167.28,16.2046]
[1729607101774,45.4179,167.42,167.25,6.2391]
[1729607101957,5.9764,167.33,167.25,6.2391]
[1729607102151,5.9754,167.36,167.25,6.2391]
[1729607102354,20.0,167.35,167.25,6.2391]
[1729607102574,5.9752,167.36,167.25,6.2391]
[1729607102783,5.9752,167.36,167.26,23.776884]
[1729607103409,5.9766,167.32,167.25,6.2391]
[1729607103565,5.9761,167.34,167.23,16.4893297]
[1729607103877,20.0,167.34,167.24,70.0]
[1729607104075,20.0,167.36,167.24,70.0]
[1729607104258,20.0,167.35,167.24,70.0]
[1729607104460,20.0,167.38,167.24,70.0]
[1729607104667,5.9746,167.38,167.27,20.0]
[1729607104978,5.9756,167.35,167.25,20.0]
[1729607105277,14.9342,167.4,167.28,23.776884]
[1729607105479,5.9753,167.36,167.28,23.776884]
[1729607105882,20.0,167.38,167.3,23.776884]
[1729607106064,5.9742,167.39,167.3,23.776884]
[1729607106262,5.9744,167.38,167.3,23.776884]
[1729607106655,5.9715,167.46,167.32,23.776884]
[1729607106977,51.2025,167.48,167.37,0.05901969]
[1729607106978,36.2746,167.48,167.37,0.05901969]
[1729607107196,5.9729,167.43,167.38,0.05901969]
[1729607107582,5.9718,167.46,167.41,0.05901969]
[1729607107782,6.4203,167.48,167.39,0.05901969]
[1729607108080,14.928,167.47,167.38,0.05901969]
[1729607108589,5.9729,167.43,167.38,0.05901969]
[1729607108781,20.0,167.46,167.38,0.05901969]
[1729607109099,5.9731,167.42,167.38,0.05901969]
[1729607109598,14.9298,167.45,167.37,0.05901969]
[1729607109774,5.9736,167.41,167.37,0.05901969]
[1729607109970,5.974,167.39,167.34,0.05901969]
[1729607110175,20.0,167.43,167.33,20.0]
[1729607110176,5.91462989,167.4,167.35,0.05901969]
[1729607110781,5.9734,167.41,167.37,0.05901969]
[1729607111508,5.9726,167.43,167.37,0.05901969]
[1729607111673,21.3476,167.48,167.39,0.05901969]
[1729607111674,20.0,167.47,167.39,0.05901969]
[1729607111869,20.0,167.47,167.32,90.0]
[1729607111870,5.9734,167.41,167.38,0.05901969]
[1729607112287,20.0,167.47,167.36,0.05901969]
[1729607112498,5.9737,167.4,167.37,0.05901969]
[1729607112672,14.9307,167.44,167.33,0.05901969]
[1729607112876,5.9744,167.38,167.35,0.05901969]
[1729607113074,5.9744,167.38,167.33,0.05901969]
[1729607113275,5.9753,167.36,167.31,0.05901969]
[1729607113574,5.9753,167.36,167.27,6.3601]
[1729607113575,0.14098031,167.45,167.32,0.05901969]
[1729607113777,5.9755,167.35,167.32,0.05901969]
[1729607114281,5.91642989,167.35,167.32,0.05901969]
[1729607114476,5.91642989,167.35,167.31,0.05901969]
[1729607114678,20.0,167.39,167.32,0.05901969]
[1729607115003,5.9737,167.4,167.35,0.05901969]
[1729607115306,5.9737,167.4,167.27,76.3601]
[1729607115307,5.9712,167.47,167.41,0.05901969]
[1729607115510,6.4203,167.48,167.4,0.05901969]
[1729607115813,5.9733,167.42,167.38,0.05901969]
[1729607115989,24.3703,167.48,167.35,0.05901969]
[1729607116311,24.3703,167.48,167.36,0.05901969]
[1729607116492,5.9736,167.41,167.36,0.05901969]
[1729607118402,14.9304,167.45,167.33,20.0]
[1729607118403,23.776884,167.43,167.33,0.05901969]
[1729607118615,53.640084,167.43,167.34,0.05901969]
[1729607118813,20.0,167.41,167.34,0.05901969]
[1729607118988,5.9749,167.37,167.34,0.05901969]
[1729607119287,20.0,167.41,167.32,0.05901969]
[1729607119491,5.9754,167.36,167.32,0.05901969]
[1729607119905,20.0,167.41,167.34,0.05901969]
[1729607120115,20.0,167.38,167.34,0.05901969]
[1729607120286,5.9743,167.39,167.34,0.05901969]
[1729607120490,20.0,167.39,167.34,0.05901969]
[1729607120814,6.4203,167.48,167.35,0.05901969]
[1729607120815,20.0,167.41,167.35,0.05901969]
[1729607120991,5.9738,167.4,167.36,0.05901969]
[1729607121381,20.0,167.46,167.33,0.05901969]
[1729607121585,20.0,167.42,167.35,0.05901969]
[1729607121813,14.9292,167.46,167.38,0.05901969]
[1729607122001,5.9732,167.42,167.38,0.05901969]
[1729607122625,5.9727,167.43,167.38,0.05901969]
[1729607122918,5.9726,167.44,167.39,0.05901969]
[1729607123126,5.65606217,167.44,167.4,0.05901969]
[1729607123332,21.08694392,167.52,167.43,0.05901969]
[1729607123499,21.08694392,167.52,167.46,0.05901969]
[1729607123500,5.9697,167.51,167.46,0.05901969]
[1729607123699,30.15570145,167.54,167.48,0.05901969]
[1729607123921,13.95000145,167.54,167.51,0.05901969]
[1729607126004,19.91870145,167.54,167.51,0.05901969]
[1729607126728,5.969,167.53,167.51,0.05901969]
[1729607127023,5.969,167.53,167.5,0.05901969]
[1729607127317,13.95000145,167.54,167.5,0.05901969]
[1729607127318,19.91870145,167.54,167.5,0.05901969]
[1729607127829,13.95000145,167.54,167.5,0.05901969]
[1729607128006,13.95000145,167.54,167.51,0.05901969]
[1729607128601,13.95000145,167.54,167.48,0.05901969]
[1729607128807,5.9702,167.5,167.46,0.05901969]
[1729607129629,13.95000145,167.54,167.48,0.05901969]
[1729607129840,20.0,167.53,167.5,0.05901969]
[1729607130241,13.95000145,167.54,167.53,0.05901969]
[1729607130530,6.5978,167.61,167.55,0.05901969]
[1729607130934,5.968,167.56,167.52,0.05901969]
[1729607131137,5.9684,167.55,167.51,0.05901969]
[1729607131443,14.9164,167.6,167.53,0.05901969]
[1729607131609,5.9674,167.58,167.54,0.05901969]
[1729607132008,20.0,167.6,167.55,0.05901969]
[1729607132244,5.967,167.59,167.55,0.05901969]
[1729607132621,5.9673,167.58,167.55,0.05901969]
[1729607132818,5.9674,167.58,167.55,0.05901969]
[1729607133021,20.0,167.6,167.56,0.05901969]
[1729607133317,5.9669,167.59,167.56,0.05901969]
[1729607133535,20.0,167.6,167.56,0.05901969]
[1729607133942,17.05074356,167.64,167.5,20.0]
[1729607133943,20.0,167.63,167.58,0.05901969]
[1729607134144,16.0188,167.64,167.58,0.05901969]
[1729607134145,20.0,167.61,167.58,0.05901969]
[1729607134328,5.9658,167.62,167.58,0.05901969]
[1729607134528,5.9654,167.64,167.59,0.05901969]
[1729607134952,6.3518,167.67,167.59,0.05901969]
[1729607135324,5.9655,167.63,167.59,0.05901969]
[1729607135534,5.9655,167.63,167.54,20.0]
[1729607135535,5.9655,167.63,167.6,0.05901969]
[1729607136939,5.9652,167.64,167.61,0.05901969]
[1729607138022,5.9655,167.63,167.61,0.05901969]
[1729607138222,5.9651,167.65,167.61,0.05901969]
[1729607138424,5.9651,167.65,167.54,20.0]
[1729607138425,20.0,167.66,167.63,0.05901969]
[1729607138623,20.0,167.66,167.64,0.05901969]
[1729607139048,5.9642,167.67,167.64,0.05901969]
[1729607139265,6.6126,167.72,167.66,0.05901969]
[1729607139544,0.14098031,167.79,167.53,21.9362]
[1729607139545,6.067,167.76,167.71,0.05901969]
[1729607139745,5.9619,167.73,167.71,0.05901969]
[1729607141048,23.776884,167.75,167.65,0.05901969]
[1729607141223,14.904,167.74,167.65,0.05901969]
[1729607141431,5.9633,167.7,167.68,0.05901969]
[1729607142244,35.8718,167.76,167.69,0.05901969]
[1729607142245,5.962,167.73,167.69,0.05901969]
[1729607142446,20.0,167.72,167.7,0.05901969]
[1729607142746,6.16336926,167.78,167.73,0.05901969]
[1729607142954,5.9605,167.77,167.73,0.05901969]
[1729607143131,5.961,167.76,167.73,0.05901969]
[1729607143526,5.9614,167.75,167.73,0.05901969]
[1729607144050,5.9603,167.78,167.74,0.05901969]
[1729607144259,5.9603,167.78,167.75,0.05901969]
[1729607144548,5.9603,167.78,167.68,6.0335]
[1729607144549,5.9603,167.78,167.76,0.05901969]
[1729607144861,5.9602,167.78,167.76,0.05901969]
[1729607145857,14.8978,167.81,167.68,92.6335]
[1729607145858,5.9591,167.81,167.78,0.05901969]
[1729607146154,0.6262297,167.82,167.81,0.05901969]
[1729607147939,0.6262297,167.82,167.8,0.05901969]
[1729607148151,0.6262297,167.82,167.79,0.05901969]
[1729607148339,5.9605,167.78,167.76,0.05901969]
[1729607148543,0.6262297,167.82,167.79,0.05901969]
[1729607148733,20.6262297,167.82,167.8,0.05901969]
[1729607149633,20.6262297,167.82,167.81,0.05901969]
[1729607149946,26.5849297,167.82,167.81,0.05901969]
[1729607150146,26.5849297,167.82,167.8,0.05901969]
[1729607150345,26.5849297,167.82,167.81,0.05901969]
[1729607150553,20.6262297,167.82,167.81,0.05901969]
[1729607151347,0.6262297,167.82,167.81,0.05901969]
[1729607152043,5.9591,167.81,167.8,0.05901969]
[1729607152253,0.6262297,167.82,167.8,0.05901969]
[1729607152560,5.9591,167.81,167.8,0.05901969]
[1729607152755,0.6262297,167.82,167.8,0.05901969]
[1729607153061,0.6262297,167.82,167.81,0.05901969]
[1729607153965,6.5849297,167.82,167.81,0.05901969]
[1729607154165,5.9598,167.79,167.78,0.05901969]
[1729607154663,0.6262297,167.82,167.78,0.05901969]
[1729607154851,5.9598,167.79,167.78,0.05901969]
[1729607155049,5.9601,167.78,167.77,0.05901969]
[1729607155247,23.776884,167.8,167.74,0.05901969]
[1729607155439,14.8995,167.79,167.69,0.05901969]
[1729607155645,5.963,167.7,167.69,0.05901969]
[1729607155866,5.963,167.7,167.68,0.05901969]
[1729607156358,5.963,167.7,167.69,0.05901969]
[1729607156577,20.0,167.78,167.68,0.05901969]
[1729607156578,20.04098031,167.78,167.68,0.05901969]
[1729607156749,5.9637,167.68,167.66,0.05901969]
[1729607157171,5.9637,167.68,167.67,0.05901969]
[1729607157371,5.9626,167.72,167.7,0.05901969]
[1729607157859,5.9627,167.71,167.69,0.05901969]
[1729607158863,5.9627,167.71,167.7,0.05901969]
[1729607159248,5.9622,167.73,167.72,0.05901969]
[1729607159558,20.0,167.78,167.72,0.05901969]
[1729607159757,23.776884,167.8,167.58,33.97109556]
[1729607159758,5.9607,167.77,167.75,0.05901969]
[1729607160170,5.9609,167.76,167.74,0.05901969]
[1729607160342,5.9609,167.76,167.75,0.05901969]
[1729607160543,5.96,167.79,167.77,0.05901969]
[1729607160751,5.9594,167.81,167.79,0.05901969]
[1729607160955,5.9595,167.8,167.77,0.05901969]
[1729607161145,5.9595,167.8,167.78,0.05901969]
[1729607161545,0.6262297,167.82,167.78,0.05901969]
[1729607161963,5.9597,167.8,167.78,0.05901969]
[1729607162169,5.9597,167.8,167.79,0.05901969]
[1729607162545,5.9597,167.8,167.7,90.1]
[1729607162546,5.9598,167.79,167.78,0.05901969]
[1729607163447,5.9592,167.81,167.8,0.05901969]
[1729607164764,5.9592,167.81,167.79,0.05901969]
[1729607164955,5.9592,167.81,167.78,0.05901969]
[1729607165161,5.9598,167.79,167.78,0.05901969]
[1729607165649,5.9602,167.78,167.76,0.05901969]
[1729607166763,0.6262297,167.82,167.78,0.05901969]
[1729607166967,0.6262297,167.82,167.81,0.05901969]
[1729607167375,0.6262297,167.82,167.8,0.05901969]
[1729607167549,6.5849297,167.82,167.81,0.05901969]
[1729607167954,0.6262297,167.82,167.81,0.05901969]
[1729607169067,5.9598,167.79,167.77,0.05901969]
[1729607169377,5.9604,167.78,167.77,0.05901969]
[1729607169550,0.6262297,167.82,167.77,0.05901969]
[1729607169752,5.9598,167.79,167.78,0.05901969]
[1729607170464,20.6262297,167.82,167.69,76.383]
[1729607170465,5.9594,167.8,167.79,0.05901969]
[1729607170662,25.9591,167.81,167.8,0.05901969]
[1729607170860,6.5849297,167.82,167.81,0.05901969]
[1729607171064,0.6262297,167.82,167.81,0.05901969]
[1729607174655,0.6262297,167.82,167.79,23.776884]
[1729607175285,0.6262297,167.82,167.81,23.83590369]
[1729607175481,0.6262297,167.82,167.81,0.05901969]
[1729607175781,0.6262297,167.82,167.81,23.83590369]
[1729607176277,0.6262297,167.82,167.81,43.83590369]
[1729607176575,0.6262297,167.82,167.81,0.05901969]
[1729607179260,0.6262297,167.82,167.81,93.93590369]
[1729607179468,5.9547,167.94,167.83,0.1]
[1729607179672,30.6943,167.97,167.91,0.05901969]
[1729607179873,5.9551,167.93,167.91,0.05901969]
[1729607180369,5.9551,167.93,167.92,0.05901969]
[1729607181360,5.9548,167.94,167.92,0.05901969]
[1729607181767,5.9548,167.94,167.93,0.05901969]
[1729607181971,5.9548,167.93,167.92,0.05901969]
[1729607182170,5.9535,167.97,167.96,0.05901969]
[1729607182380,6.6949297,167.99,167.95,0.05901969]
[1729607182564,14.8827,167.98,167.92,0.05901969]
[1729607182768,5.9552,167.92,167.9,0.05901969]
[1729607182980,5.9562,167.89,167.88,0.05901969]
[1729607183298,29.7654,167.98,167.82,0.05901969]
[1729607183299,5.958,167.84,167.82,0.05901969]
[1729607183592,20.0,167.85,167.82,0.05901969]
[1729607183793,5.9587,167.83,167.82,0.05901969]
[1729607183964,5.9587,167.83,167.8,0.05901969]
[1729607184167,20.0,167.85,167.8,0.05901969]
[1729607184368,20.0,167.85,167.74,6.3612]
[1729607184369,20.0,167.85,167.78,0.05901969]
[1729607184587,20.0,167.85,167.82,0.05901969]
[1729607184789,25.9584,167.83,167.82,0.05901969]
[1729607185174,25.9584,167.83,167.81,0.05901969]
[1729607185382,5.9591,167.81,167.79,0.05901969]
[1729607185599,5.9591,167.81,167.8,0.05901969]
[1729607186389,5.9586,167.83,167.81,0.05901969]
[1729607186686,20.0,167.85,167.8,0.05901969]
[1729607186687,20.0,167.82,167.8,0.05901969]
[1729607186894,5.9601,167.78,167.76,0.05901969]
[1729607187192,5.9601,167.78,167.67,99.41080237]
[1729607187193,20.0,167.79,167.71,0.05901969]
[1729607187385,20.0,167.77,167.71,0.05901969]
[1729607187695,5.9624,167.72,167.7,0.05901969]
[1729607187897,20.0,167.75,167.7,0.05901969]
[1729607188069,20.0,167.73,167.7,0.05901969]
[1729607188278,20.0,167.75,167.61,92.8151]
[1729607188279,20.0,167.75,167.69,0.05901969]
[1729607188466,20.0,167.73,167.69,0.05901969]
[1729607188673,5.9633,167.69,167.67,0.05901969]
[1729607189087,20.0,167.69,167.64,0.05901969]
[1729607189291,5.9646,167.66,167.64,0.05901969]
[1729607189472,5.9648,167.65,167.62,0.05901969]
[1729607190273,5.9648,167.65,167.63,0.05901969]
[1729607190578,5.9638,167.68,167.66,0.05901969]
[1729607190782,20.0,167.67,167.66,0.05901969]
[1729607190973,25.964,167.67,167.66,0.05901969]
[1729607191199,5.964,167.67,167.65,0.05901969]
[1729607191373,5.9633,167.7,167.68,0.05901969]
[1729607191782,5.9623,167.72,167.7,0.05901969]
[1729607192197,5.9626,167.71,167.7,0.05901969]
[1729607192699,5.9626,167.71,167.69,0.05901969]
[1729607192994,5.9626,167.71,167.7,0.05901969]
[1729607193375,5.9626,167.71,167.69,0.05901969]
[1729607193774,5.9626,167.71,167.61,90.1]
[1729607193775,5.9626,167.71,167.68,0.05901969]
[1729607194203,42.28079055,167.78,167.67,0.05901969]
[1729607194498,0.1,167.74,167.63,0.05901969]
[1729607194701,0.1,167.71,167.6,0.05901969]
[1729607194998,5.9658,167.62,167.61,0.05901969]
[1729607195176,14.9087,167.69,167.57,0.1]
[1729607195177,20.0,167.67,167.62,0.05901969]
[1729607195374,5.9658,167.62,167.61,0.05901969]
[1729607195598,20.0,167.67,167.57,0.1]
[1729607195599,5.9654,167.64,167.62,0.05901969]
[1729607195800,20.0,167.68,167.61,0.05901969]
[1729607195982,5.964,167.67,167.62,0.05901969]
[1729607196286,5.9658,167.63,167.61,0.05901969]
[1729607196697,5.9658,167.63,167.62,0.05901969]
[1729607197501,5.9655,167.63,167.62,0.05901969]
[1729607197694,5.9655,167.63,167.61,0.05901969]
[1729607198097,5.9658,167.62,167.61,0.05901969]
[1729607198609,20.0,167.65,167.61,0.05901969]
[1729607199108,5.9658,167.62,167.61,0.05901969]
[1729607199875,5.9658,167.62,167.57,0.1]
[1729607199876,5.9658,167.62,167.59,0.05901969]
[1729607200084,5.9658,167.62,167.57,0.1]
[1729607200085,5.9658,167.62,167.6,0.05901969]
[1729607200303,5.9658,167.62,167.61,0.05901969]
[1729607200478,5.9658,167.62,167.6,0.05901969]
[1729607200694,20.0,167.65,167.6,0.05901969]
[1729607200903,5.9661,167.62,167.59,0.05901969]
[1729607201090,5.9665,167.61,167.58,0.05901969]
[1729607201486,5.9665,167.6,167.59,0.05901969]
[1729607201789,5.9665,167.6,167.58,0.05901969]
[1729607201989,5.9665,167.6,167.59,0.05901969]
[1729607202385,20.0,167.65,167.59,0.05901969]
[1729607202585,20.0,167.65,167.57,0.1]
[1729607202586,5.9662,167.61,167.6,0.05901969]
[1729607202983,7.44134532,167.67,167.63,0.05901969]
[1729607203300,5.9648,167.65,167.64,0.05901969]
[1729607203502,14.9093,167.68,167.61,0.05901969]
[1729607203690,29.8169,167.69,167.61,0.05901969]
[1729607204195,20.0,167.68,167.61,0.05901969]
[1729607204984,20.0,167.68,167.62,0.05901969]
[1729607205401,5.9657,167.63,167.62,0.05901969]
[1729607206103,25.965,167.65,167.63,0.05901969]
[1729607207284,25.965,167.65,167.64,0.05901969]
[1729607210104,20.0,167.69,167.65,0.05901969]
[1729607210306,5.9639,167.68,167.66,0.05901969]
[1729607210516,5.9639,167.68,167.58,0.1]
[1729607210517,5.9639,167.68,167.67,0.05901969]
[1729607210812,6.4051,167.72,167.65,0.05901969]
[1729607210984,5.9644,167.66,167.65,0.05901969]
[1729607211188,0.1,167.64,167.57,0.15901969]
[1729607211389,5.9672,167.58,167.57,0.1]
[1729607211582,5.9672,167.58,167.45,16.2386]
[1729607211583,0.1,167.58,167.48,0.05901969]
[1729607211811,23.776884,167.55,167.49,0.05901969]
[1729607212105,5.9688,167.54,167.52,0.05901969]
[1729607212312,5.9694,167.52,167.5,0.05901969]
[1729607212493,5.9697,167.51,167.49,0.05901969]
[1729607212691,5.9694,167.52,167.5,0.05901969]
[1729607213104,5.9694,167.52,167.51,0.05901969]
[1729607213314,5.9695,167.52,167.51,0.05901969]
[1729607213808,20.0,167.59,167.54,0.05901969]
[1729607214017,5.9683,167.55,167.53,0.05901969]
[1729607214308,5.9662,167.61,167.58,0.05901969]
[1729607214516,5.9667,167.6,167.58,0.05901969]
[1729607214895,5.9669,167.59,167.58,0.05901969]
[1729607215691,5.9678,167.57,167.55,0.05901969]
[1729607215890,23.776884,167.63,167.55,0.05901969]
[1729607216091,5.968,167.56,167.55,0.05901969]
[1729607216316,20.0,167.61,167.56,0.05901969]
[1729607216624,5.9676,167.57,167.56,0.05901969]
[1729607217112,20.0,167.59,167.51,0.05901969]
[1729607217294,20.0,167.59,167.42,34.01766556]
[1729607217295,20.0,167.59,167.5,0.05901969]
[1729607217494,5.969,167.53,167.5,0.05901969]
[1729607217711,20.0,167.57,167.5,0.05901969]
[1729607217911,20.0,167.55,167.48,0.05901969]
[1729607218211,20.0,167.52,167.5,0.05901969]
[1729607218797,5.9704,167.5,167.47,0.05901969]
[1729607219199,20.0,167.54,167.46,0.05901969]
[1729607219200,5.9711,167.48,167.46,0.05901969]
[1729607219615,5.9704,167.5,167.47,0.05901969]
[1729607220026,5.9704,167.5,167.48,0.05901969]
[1729607220520,34.9201,167.56,167.49,0.05901969]
[1729607220712,5.9701,167.5,167.47,0.05901969]
[1729607221017,5.9708,167.49,167.48,0.05901969]
[1729607223599,5.9708,167.49,167.46,0.05901969]
[1729607224527,0.1,167.51,167.4,0.68524939]
[1729607224826,5.9729,167.43,167.41,0.05901969]
[1729607225029,0.1,167.51,167.43,0.05901969]
[1729607225207,23.776884,167.5,167.43,0.05901969]
[1729607225408,25.9722,167.44,167.43,0.05901969]
[1729607225605,5.9733,167.41,167.4,0.68524939]
[1729607225813,25.9733,167.41,167.4,0.6262297]
[1729607226421,25.9733,167.41,167.4,0.68524939]
[1729607227126,25.9733,167.41,167.4,0.6262297]
[1729607228544,49.750184,167.41,167.4,0.6262297]
[1729607229027,25.9733,167.41,167.4,0.6262297]
[1729607230226,49.750184,167.41,167.4,0.6262297]
[1729607230829,25.9733,167.41,167.4,0.6262297]
[1729607233632,25.9733,167.41,167.27,0.1]
[1729607233633,0.1,167.36,167.27,0.1]
[1729607233830,20.0,167.39,167.26,6.5457]
[1729607233831,0.1,167.35,167.26,6.5457]
[1729607234137,20.0,167.39,167.26,6.5457]
[1729607234138,0.1,167.32,167.26,6.5457]
[1729607234323,6.0772,167.31,167.26,6.5457]
[1729607234514,20.0,167.37,167.22,6.4147]
[1729607234515,5.9783,167.27,167.22,6.4147]
[1729607234715,0.1,167.28,167.22,6.4147]
[1729607234924,6.078,167.28,167.22,6.4147]
[1729607235251,5.9787,167.26,167.22,6.4147]
[1729607235554,0.1,167.29,167.22,6.4147]
[1729607235843,0.1,167.28,167.2,15.9366]
[1729607236030,16.0587,167.34,167.17,8.42372361]
[1729607236031,0.1,167.24,167.17,8.42372361]
[1729607236232,0.1,167.27,167.17,8.52372361]
[1729607236421,0.1,167.25,167.17,8.52372361]
[1729607236622,0.1,167.28,167.18,0.1]
[1729607236841,38.21803116,167.37,167.22,0.1]
[1729607236842,0.1,167.33,167.22,0.1]
[1729607237019,0.1,167.33,167.21,70.0]
[1729607237020,0.1,167.33,167.23,0.7262297]
[1729607237337,0.1,167.32,167.23,0.6262297]
[1729607237530,6.0771,167.31,167.25,20.0]
[1729607238238,0.1,167.33,167.25,20.0]
[1729607238446,0.1,167.34,167.26,23.776884]
[1729607238632,0.1,167.35,167.26,23.776884]
[1729607238949,0.1,167.36,167.28,23.776884]
[1729607239145,6.0755,167.35,167.28,23.776884]
[1729607239744,0.1,167.31,167.21,70.0]
[1729607239948,0.1,167.33,167.22,0.1]
[1729607240153,0.1,167.27,167.18,0.1]
[1729607240446,20.1,167.31,167.2,70.1]
[1729607240648,0.1,167.28,167.18,70.0]
[1729607240827,5.9785,167.27,167.18,70.0]
[1729607241151,0.1,167.28,167.18,70.0]
[1729607241323,0.1,167.28,167.19,0.1]
[1729607241533,6.0781,167.28,167.18,70.1]
[1729607241840,5.9783,167.27,167.18,70.1]
[1729607242144,6.078,167.28,167.18,70.1]
[1729607242334,6.078,167.28,167.18,0.1]
[1729607242529,6.078,167.28,167.19,20.0]
[1729607242752,0.1,167.3,167.2,70.0]
[1729607242924,0.1,167.33,167.26,23.776884]
[1729607243125,0.1,167.34,167.26,23.776884]
[1729607243437,0.1,167.36,167.3,23.776884]
[1729607243641,0.1,167.35,167.29,20.0]
[1729607243841,0.1,167.32,167.25,43.776884]
[1729607244749,0.1,167.34,167.25,43.776884]
[1729607244946,0.1,167.34,167.25,43.876884]
[1729607245127,0.1,167.36,167.27,43.776884]
[1729607245623,0.1,167.35,167.27,43.776884]
[1729607247240,0.1,167.37,167.27,43.776884]
[1729607247437,0.1,167.38,167.28,70.0]
[1729607247633,0.1,167.38,167.29,43.876884]
[1729607247848,0.1,167.41,167.32,43.776884]
[1729607248042,0.1,167.4,167.32,43.776884]
[1729607248424,0.1,167.43,167.34,43.776884]
[1729607248736,0.1,167.44,167.34,43.776884]
[1729607248940,6.0962,167.46,167.34,43.776884]
[1729607248941,0.1,167.43,167.34,50.174784]
[1729607249744,0.1,167.47,167.37,43.776884]
[1729607249954,0.1,167.41,167.34,6.2979]
[1729607250171,0.1,167.38,167.32,15.0321]
[1729607250466,0.1,167.38,167.3,6.0493]
[1729607250467,6.0747,167.38,167.31,23.776884]
[1729607250641,6.0749,167.37,167.3,6.0493]
[1729607250958,6.0745,167.38,167.3,6.0493]
[1729607251361,0.1,167.37,167.3,6.0493]
[1729607251752,0.1,167.37,167.31,23.776884]
[1729607252456,6.0745,167.38,167.31,23.776884]
[1729607252666,0.1,167.4,167.32,20.0]
[1729607252834,0.1,167.47,167.32,20.0]
[1729607252835,20.1,167.42,167.33,23.776884]
[1729607253143,15.1758,167.49,167.35,23.776884]
[1729607253144,0.1,167.43,167.35,23.776884]
[1729607253744,0.1,167.43,167.37,23.776884]
[1729607254863,0.1,167.4,167.31,70.0]
[1729607255159,6.0733,167.41,167.32,23.776884]
[1729607255363,0.1,167.4,167.32,23.776884]
[1729607255660,6.0735,167.41,167.32,23.776884]
[1729607255842,0.1,167.41,167.32,23.776884]
[1729607256034,0.1,167.4,167.32,23.776884]
[1729607256235,6.0716,167.46,167.36,20.0]
[1729607256455,0.1,167.46,167.38,20.0]
[1729607256661,0.1,167.44,167.38,20.0]
[1729607256848,21.5733,167.5,167.35,76.1257]
[1729607256849,0.1,167.41,167.35,6.1257]
[1729607257051,5.973,167.42,167.35,6.1257]